bitfinex-derivatives/quotes_SOLF0:USTF0_20240911
["timestamp","ask_amount","ask_price","bid_price","bid_amount"]
[1726069151575,3.8035,131.47,131.39,32.18]
[1726069151975,6.370608,131.5,131.39,32.18]
[1726069152184,6.370608,131.5,131.4,3.805]
[1726069152385,6.370608,131.5,131.39,32.18]
[1726069152675,3.8038,131.46,131.41,3.805]
[1726069152886,6.370608,131.5,131.41,3.805]
[1726069153074,6.370608,131.5,131.39,32.18]
[1726069153271,3.8044,131.44,131.39,3.8053]
[1726069153471,32.18,131.48,131.39,3.8053]
[1726069153671,32.18,131.48,131.37,32.18]
[1726069153872,6.370608,131.5,131.35,32.18]
[1726069153873,32.18,131.46,131.35,32.18]
[1726069154279,3.805,131.42,131.37,3.806]
[1726069154478,32.18,131.46,131.35,32.18]
[1726069154780,32.18,131.48,131.37,32.18]
[1726069154983,32.18,131.48,131.34,2.6553]
[1726069154984,6.370608,131.5,131.4,32.18]
[1726069155278,2.5975,131.5,131.42,32.18]
[1726069155881,32.18,131.55,131.44,32.18]
[1726069156081,34.8447,131.55,131.46,3.8034]
[1726069156383,34.8447,131.55,131.44,32.18]
[1726069156774,2.6647,131.55,131.49,32.18]
[1726069156981,1.4211,131.58,131.49,32.18]
[1726069157181,1.4211,131.58,131.51,32.18]
[1726069157377,2.6415,131.62,131.53,32.18]
[1726069157678,3.7995,131.61,131.54,3.8012]
[1726069157883,2.6415,131.62,131.53,32.18]
[1726069158577,2.6415,131.62,131.5,3.72374421]
[1726069158578,33.6011,131.67,131.55,32.18]
[1726069158790,6.4610919,131.67,131.58,32.18]
[1726069158982,38.6410919,131.67,131.58,32.18]
[1726069159177,38.6410919,131.67,131.57,3.8001]
[1726069159383,38.6410919,131.67,131.56,32.18]
[1726069159686,6.4610919,131.67,131.56,32.18]
[1726069160088,2.748,131.67,131.58,32.18]
[1726069160276,3.7973,131.68,131.6,32.18]
[1726069160482,154.67744455,131.76,131.62,32.18]
[1726069160684,3.85148115,131.75,131.62,32.18]
[1726069160881,32.18,131.73,131.6,32.18]
[1726069161186,35.97066482,131.73,131.6,32.18]
[1726069161487,3.7969,131.7,131.62,3.7987]
[1726069161693,35.97066482,131.73,131.6,32.18]
[1726069161884,35.97066482,131.73,131.63,32.18]
[1726069162388,32.18,131.71,131.6,32.18]
[1726069162574,32.18,131.71,131.58,32.18]
[1726069162984,32.18,131.69,131.58,32.18]
[1726069163182,3.79066482,131.73,131.58,35.9801]
[1726069163382,32.18,131.68,131.58,32.18]
[1726069163584,32.18,131.7,131.61,3.799]
[1726069163986,32.18,131.7,131.58,32.18]
[1726069164192,3.7983,131.65,131.58,32.18]
[1726069164487,32.18,131.68,131.58,32.18]
[1726069164683,3.7982,131.65,131.6,3.7993]
[1726069165005,32.18,131.68,131.58,32.18]
[1726069165893,3.7983,131.65,131.58,32.18]
[1726069166385,32.18,131.71,131.58,32.18]
[1726069166588,32.18,131.71,131.52,37.37148291]
[1726069166589,32.18,131.71,131.6,32.18]
[1726069166781,3.7977,131.67,131.62,3.7987]
[1726069167185,32.18,131.71,131.6,32.18]
[1726069167395,3.7981,131.65,131.6,3.7993]
[1726069167690,35.92829053,131.73,131.57,32.18]
[1726069167691,32.18,131.68,131.57,32.18]
[1726069168200,32.18,131.66,131.53,32.18]
[1726069168388,35.92829053,131.73,131.53,32.18]
[1726069168389,32.18,131.64,131.53,35.94405417]
[1726069168591,3.8,131.59,131.54,3.801]
[1726069168787,3.8,131.59,131.53,32.18]
[1726069169092,3.7996,131.6,131.55,3.8008]
[1726069169291,32.18,131.62,131.49,32.18]
[1726069169686,3.8006,131.57,131.52,3.8017]
[1726069169888,32.18,131.6,131.44,1.3238]
[1726069170188,32.18,131.57,131.44,2.6299]
[1726069170691,3.8008,131.56,131.52,3.8017]
[1726069170890,2.6203,131.59,131.49,32.18]
[1726069172396,2.6203,131.59,131.44,2.6299]
[1726069172590,2.6203,131.59,131.48,32.18]
[1726069172792,2.6203,131.59,131.5,32.18]
[1726069172990,2.6203,131.59,131.55,3.8009]
[1726069173198,2.6203,131.59,131.5,32.18]
[1726069173598,3.801,131.56,131.52,3.8018]
[1726069173989,2.6203,131.59,131.52,3.8018]
[1726069174696,2.6203,131.59,131.51,3.8021]
[1726069174904,2.6203,131.59,131.48,32.18]
[1726069175200,3.8008,131.56,131.52,3.8016]
[1726069175693,2.6203,131.59,131.53,3.8015]
[1726069175996,2.6203,131.59,131.5,32.18]
[1726069176499,3.8002,131.58,131.5,32.18]
[1726069176890,6.4202,131.59,131.5,32.18]
[1726069177100,32.18,131.62,131.52,32.18]
[1726069177492,3.8003,131.58,131.54,3.8011]
[1726069177687,32.18,131.62,131.52,32.18]
[1726069177892,32.18,131.62,131.54,3.8011]
[1726069177893,3.8003,131.58,131.54,3.8011]
[1726069178098,32.18,131.62,131.5,32.18]
[1726069178901,3.7998,131.6,131.56,3.8005]
[1726069179201,32.18,131.62,131.5,32.18]
[1726069179501,32.18,131.69,131.55,32.18]
[1726069179694,36.2079,131.69,131.56,2.6432]
[1726069179894,40.05036939,131.69,131.58,32.18]
[1726069180095,32.18,131.67,131.56,2.6432]
[1726069180491,3.7982,131.65,131.56,2.6432]
[1726069180701,7.87036939,131.69,131.58,32.18]
[1726069180702,36.2079,131.69,131.58,32.18]
[1726069180896,39.95153263,131.69,131.58,36.0289318]
[1726069181393,34.9131,131.69,131.58,36.0289318]
[1726069181602,2.7331,131.69,131.65,3.7978]
[1726069181909,2.7331,131.69,131.6,32.18]
[1726069182203,32.18,131.71,131.6,32.18]
[1726069182412,38.63103998,131.74,131.63,32.18]
[1726069182707,32.18,131.72,131.6,32.18]
[1726069182904,32.18,131.7,131.58,36.0289318]
[1726069183096,36.00400117,131.7,131.58,32.18]
[1726069183303,36.00400117,131.7,131.63,3.7986]
[1726069183501,36.00400117,131.7,131.58,32.18]
[1726069183696,3.7976,131.67,131.63,3.7985]
[1726069184302,36.00400117,131.7,131.58,32.18]
[1726069184803,3.7986,131.64,131.56,34.8232]
[1726069185111,32.18,131.65,131.56,2.6432]
[1726069185314,32.18,131.65,131.54,32.18]
[1726069185607,32.18,131.65,131.52,126.93096202]
[1726069185608,32.18,131.63,131.52,126.93096202]
[1726069186502,32.18,131.65,131.53,32.18]
[1726069187007,32.18,131.65,131.55,32.18]
[1726069187203,32.18,131.65,131.53,32.18]
[1726069187807,32.18,131.65,131.55,32.18]
[1726069188103,32.18,131.65,131.53,32.18]
[1726069188903,3.7985,131.64,131.6,3.7993]
[1726069189200,32.18,131.65,131.55,32.18]
[1726069189405,35.9783,131.65,131.55,32.18]
[1726069189601,3.7983,131.65,131.55,32.18]
[1726069189807,4.1597,131.66,131.55,32.18]
[1726069190607,3.7985,131.64,131.6,3.7993]
[1726069191807,3.7987,131.63,131.6,3.7993]
[1726069192005,32.18,131.65,131.55,32.18]
[1726069192208,3.7994,131.61,131.53,32.18]
[1726069192714,3.7991,131.62,131.53,32.18]
[1726069192902,32.18,131.65,131.53,32.18]
[1726069193210,32.18,131.65,131.59,3.7998]
[1726069193401,32.18,131.65,131.56,32.18]
[1726069193603,32.18,131.65,131.59,3.7997]
[1726069193808,32.18,131.65,131.56,32.18]
[1726069194110,32.18,131.65,131.6,3.7993]
[1726069194308,3.7985,131.64,131.6,3.7993]
[1726069194516,3.7985,131.64,131.56,32.18]
[1726069194703,4.1597,131.66,131.56,32.18]
[1726069195013,4.1597,131.66,131.58,32.18]
[1726069195316,1.3386,131.66,131.58,36.07337402]
[1726069195501,3.7976,131.67,131.58,36.07337402]
[1726069195706,2.7201,131.69,131.6,32.18]
[1726069196111,3.7974,131.68,131.6,32.18]
[1726069196317,2.7201,131.69,131.6,32.18]
[1726069196703,3.798,131.66,131.6,32.18]
[1726069196909,3.798,131.66,131.62,3.7987]
[1726069197108,2.7201,131.69,131.6,32.18]
[1726069197309,3.7978,131.67,131.6,32.18]
[1726069197516,2.7201,131.69,131.62,3.7989]
[1726069198711,2.7201,131.69,131.6,32.18]
[1726069198915,3.798,131.66,131.6,32.18]
[1726069199206,3.798,131.66,131.62,3.7987]
[1726069199408,5.1042,131.71,131.62,32.18]
[1726069199814,1.3076,131.71,131.62,32.18]
[1726069200516,32.18,131.7,131.59,34.8409]
[1726069200720,34.9509,131.7,131.61,3.799]
[1726069200907,34.9509,131.7,131.59,34.8409]
[1726069201112,3.798,131.66,131.59,34.8409]
[1726069201415,32.18,131.68,131.59,2.6609]
[1726069201621,32.18,131.68,131.57,32.18]
[1726069201816,32.18,131.64,131.53,34.8403]
[1726069202314,4.0892,131.63,131.55,3.8008]
[1726069202620,3.8,131.59,131.55,3.8008]
[1726069202814,3.8,131.59,131.5,3.88580551]
[1726069202815,32.18,131.62,131.5,36.06580551]
[1726069203015,32.18,131.62,131.54,3.8012]
[1726069203214,3.8003,131.58,131.54,3.8012]
[1726069203432,32.18,131.62,131.55,3.8009]
[1726069203723,32.18,131.62,131.5,35.98956094]
[1726069204022,4.0892,131.63,131.52,32.18]
[1726069204523,4.0892,131.63,131.55,3.8008]
[1726069204917,3.7999,131.59,131.55,3.8008]
[1726069205224,32.18,131.62,131.5,32.18]
[1726069205416,3.8003,131.58,131.5,32.18]
[1726069205617,32.18,131.62,131.5,32.18]
[1726069205814,3.8006,131.57,131.5,32.18]
[1726069206012,32.18,131.62,131.5,32.18]
[1726069206413,3.8009,131.56,131.52,3.8016]
[1726069206728,32.18,131.59,131.48,38.73299768]
[1726069206909,3.8015,131.54,131.48,2.6592]
[1726069207222,32.18,131.57,131.45,32.18]
[1726069207426,4.011,131.56,131.45,35.89167997]
[1726069207924,3.8016,131.53,131.45,32.18]
[1726069208223,4.011,131.56,131.47,32.18]
[1726069208424,3.801,131.55,131.47,32.18]
[1726069208919,4.011,131.56,131.48,3.8028]
[1726069209112,4.011,131.56,131.42,2.6608]
[1726069209113,4.011,131.56,131.44,32.18]
[1726069209312,4.011,131.56,131.42,2.6608]
[1726069209313,36.191,131.56,131.46,32.18]
[1726069209516,36.191,131.56,131.46,35.9821902]
[1726069209517,3.8011,131.55,131.46,35.9821902]
[1726069209721,4.011,131.56,131.46,35.9821902]
[1726069210716,3.8013,131.54,131.46,35.9821902]
[1726069210916,3.8013,131.54,131.46,32.18]
[1726069211319,4.011,131.56,131.46,32.18]
[1726069211518,2.674,131.56,131.51,3.8021]
[1726069211719,3.801,131.55,131.51,3.8021]
[1726069211917,2.674,131.56,131.49,32.18]
[1726069212419,6.4748,131.56,131.49,32.18]
[1726069212625,2.674,131.56,131.49,32.18]
[1726069212818,6.4748,131.56,131.52,3.8017]
[1726069213224,2.674,131.56,131.49,32.18]
[1726069213529,2.674,131.56,131.46,32.18]
[1726069213820,3.8016,131.53,131.49,3.8025]
[1726069214021,2.674,131.56,131.46,32.18]
[1726069214423,3.801,131.55,131.46,32.18]
[1726069215122,3.8013,131.54,131.5,3.8023]
[1726069215328,2.674,131.56,131.46,32.18]
[1726069215528,32.18,131.52,131.42,2.6608]
[1726069216221,3.8025,131.5,131.46,3.8033]
[1726069216416,1.3577,131.55,131.42,34.8408]
[1726069216417,32.18,131.54,131.42,34.8408]
[1726069217123,3.8026,131.5,131.42,34.8408]
[1726069217330,32.18,131.52,131.42,2.6608]
[1726069217626,32.18,131.49,131.39,32.18]
[1726069217830,3.8035,131.47,131.42,3.8045]
[1726069218032,3.8035,131.47,131.39,32.18]
[1726069218227,4.0548,131.48,131.39,32.18]
[1726069218529,32.18,131.53,131.39,32.18]
[1726069218724,4.017,131.52,131.37,2.6644]
[1726069219027,32.18,131.51,131.4,32.18]
[1726069219330,3.73391972,131.5,131.4,32.18]
[1726069220327,3.8031,131.48,131.44,3.8041]
[1726069220525,3.73391972,131.5,131.44,3.8041]
[1726069220920,32.18,131.51,131.4,32.18]
[1726069221129,4.017,131.52,131.42,32.18]
[1726069221323,7.819,131.52,131.43,3.88974286]
[1726069221525,7.819,131.52,131.37,2.6644]
[1726069221526,4.017,131.52,131.44,32.18]
[1726069221736,4.017,131.52,131.42,32.18]
[1726069222027,4.017,131.52,131.44,32.18]
[1726069222329,2.616,131.52,131.44,32.18]
[1726069222528,32.18,131.55,131.49,3.8026]
[1726069222730,32.18,131.55,131.44,34.8409]
[1726069223028,4.0987,131.56,131.46,32.18]
[1726069223224,4.0987,131.56,131.48,32.18]
[1726069223629,4.0987,131.56,131.46,32.18]
[1726069225333,32.18,131.55,131.44,34.8409]
[1726069225727,32.18,131.55,131.49,3.8026]
[1726069225728,3.8017,131.53,131.49,3.8026]
[1726069225924,3.8017,131.53,131.44,34.8409]
[1726069226126,4.0987,131.56,131.48,32.18]
[1726069226434,4.0987,131.56,131.52,3.8018]
[1726069226734,4.0987,131.56,131.51,3.802]
[1726069226735,3.8011,131.55,131.51,3.802]
[1726069226930,4.0987,131.56,131.51,3.802]
[1726069227330,4.0987,131.56,131.5,3.8023]
[1726069228032,3.8015,131.54,131.5,3.8023]
[1726069228232,4.0987,131.56,131.49,3.8026]
[1726069228529,3.802,131.52,131.46,32.18]
[1726069228736,32.18,131.55,131.46,32.18]
[1726069228934,32.18,131.53,131.41,32.18]
[1726069229129,3.8029,131.49,131.41,32.18]
[1726069229324,32.18,131.53,131.41,32.18]
[1726069229528,4.0987,131.56,131.46,32.18]
[1726069229730,4.0987,131.56,131.52,3.8017]
[1726069229924,4.0987,131.56,131.48,32.18]
[1726069230141,3.8,131.59,131.5,32.18]
[1726069230429,32.18,131.62,131.52,32.18]
[1726069230833,32.18,131.62,131.55,3.8009]
[1726069231031,32.18,131.62,131.5,32.18]
[1726069231230,32.18,131.62,131.53,3.8014]
[1726069231625,32.18,131.62,131.5,32.18]
[1726069231832,32.18,131.62,131.52,32.18]
[1726069232236,4.0632,131.63,131.52,52.19]
[1726069232740,4.0632,131.63,131.56,3.8006]
[1726069232925,4.0632,131.63,131.52,52.19]
[1726069233130,4.0632,131.63,131.56,3.8005]
[1726069233531,3.7991,131.62,131.57,3.8002]
[1726069233840,4.0632,131.63,131.52,52.19]
[1726069234232,3.7994,131.61,131.52,52.19]
[1726069235441,4.0632,131.63,131.55,3.8007]
[1726069235741,4.0632,131.63,131.52,52.19]
[1726069236129,52.19,131.61,131.5,52.19]
[1726069236538,56.2532,131.63,131.48,5.12416407]
[1726069236739,56.2532,131.63,131.52,52.19]
[1726069237241,3.7997,131.6,131.56,3.8005]
[1726069237540,56.2532,131.63,131.52,52.19]
[1726069237739,3.7997,131.6,131.56,3.8005]
[1726069238437,3.7999,131.59,131.56,3.8005]
[1726069238938,3.7999,131.59,131.51,52.19]
[1726069239641,3.8001,131.58,131.51,52.19]
[1726069240251,3.8001,131.58,131.55,3.8008]
[1726069240437,3.7999,131.59,131.51,52.19]
[1726069240731,56.2532,131.63,131.51,52.19]
[1726069240936,3.8006,131.57,131.51,52.19]
[1726069241139,3.8006,131.57,131.54,3.8012]
[1726069241742,3.8007,131.56,131.53,3.8014]
[1726069241941,3.84132897,131.59,131.51,52.19]
[1726069242142,52.19,131.61,131.49,52.19]
[1726069242338,3.8008,131.56,131.49,52.19]
[1726069242937,56.2532,131.63,131.51,52.19]
[1726069243346,3.8,131.59,131.56,3.8005]
[1726069243745,56.2532,131.63,131.51,52.19]
[1726069243944,3.7996,131.6,131.57,3.8003]
[1726069245152,56.2532,131.63,131.5,52.19]
[1726069245852,52.19,131.61,131.5,52.19]
[1726069246040,52.19,131.61,131.48,53.4941]
[1726069246240,3.8009,131.56,131.52,3.8017]
[1726069246452,3.8441106,131.56,131.48,53.4941]
[1726069246653,52.19,131.59,131.48,53.4941]
[1726069246848,3.8014,131.54,131.48,53.4941]
[1726069247045,4.0632,131.63,131.49,3.71786224]
[1726069247245,1.22784961,131.62,131.5,52.19]
[1726069247444,53.41784961,131.62,131.5,52.19]
[1726069247649,52.19,131.59,131.48,1.3368]
[1726069247852,55.92991768,131.59,131.47,5.06415581]
[1726069248051,3.8008,131.56,131.47,5.06415581]
[1726069248252,3.8008,131.56,131.47,1.3269]
[1726069248654,55.92991768,131.59,131.47,1.3269]
[1726069248849,52.19,131.57,131.47,1.3269]
[1726069249044,3.8013,131.55,131.47,1.3269]
[1726069249255,4.2118,131.56,131.47,1.3269]
[1726069249862,52.19,131.55,131.44,52.19]
[1726069250370,52.19,131.55,131.47,3.8032]
[1726069250551,52.19,131.55,131.44,52.19]
[1726069250860,52.19,131.5,131.4,52.19]
[1726069251065,4.1842,131.49,131.38,3.71985167]
[1726069251262,11.74927085,131.49,131.44,3.804]
[1726069251668,11.74927085,131.49,131.39,3.73620685]
[1726069251963,4.1842,131.49,131.39,52.19]
[1726069252265,4.1842,131.49,131.4,32.13]
[1726069252465,7.9871,131.49,131.45,3.8037]
[1726069252667,7.9871,131.49,131.4,32.13]
[1726069252668,4.1842,131.49,131.4,32.13]
[1726069252967,3.8032,131.48,131.44,3.8039]
[1726069253171,4.1842,131.49,131.4,32.13]
[1726069253463,4.1842,131.49,131.45,3.8037]
[1726069253664,4.1842,131.49,131.4,32.13]
[1726069254167,36.3142,131.49,131.39,3.74533532]
[1726069254472,36.3142,131.49,131.38,32.13]
[1726069254767,36.3142,131.49,131.39,6.70664319]
[1726069254768,3.8031,131.48,131.39,6.70664319]
[1726069254963,3.8031,131.48,131.39,10.57545073]
[1726069255266,7.9869,131.49,131.45,3.8036]
[1726069255462,4.1842,131.49,131.45,3.8036]
[1726069255664,7.9871,131.49,131.45,3.8036]
[1726069255968,4.1842,131.49,131.45,3.8036]
[1726069256268,4.1842,131.49,131.44,3.804]
[1726069256773,3.8035,131.47,131.43,3.8044]
[1726069257067,3.8035,131.47,131.4,32.13]
[1726069257263,3.8036,131.46,131.42,3.8047]
[1726069257456,4.1842,131.49,131.38,32.13]
[1726069257457,36.3142,131.49,131.38,32.13]
[1726069258767,3.8035,131.47,131.38,32.13]
[1726069259172,3.8036,131.46,131.43,3.8044]
[1726069259668,3.8038,131.46,131.38,32.13]
[1726069260166,36.3142,131.49,131.38,32.13]
[1726069261371,32.13,131.53,131.43,32.13]
[1726069261671,32.13,131.56,131.45,32.13]
[1726069262470,1.397,131.57,131.51,3.8019]
[1726069262661,1.397,131.57,131.47,32.13]
[1726069263160,1.397,131.57,131.5,3.8024]
[1726069263360,1.397,131.57,131.47,32.13]
[1726069263562,1.397,131.57,131.49,32.13]
[1726069263766,2.7489,131.58,131.49,32.13]
[1726069264467,6.5492,131.58,131.54,3.8011]
[1726069264769,2.7489,131.58,131.54,3.8011]
[1726069265170,1.3805,131.61,131.55,3.801]
[1726069265569,1.3805,131.61,131.51,32.13]
[1726069265770,3.8004,131.57,131.53,3.8015]
[1726069265969,3.88403855,131.59,131.51,32.13]
[1726069266169,3.8009,131.56,131.49,32.13]
[1726069266672,3.8013,131.54,131.51,3.8021]
[1726069266968,5.21285893,131.57,131.51,3.8021]
[1726069267271,3.8013,131.54,131.5,3.8023]
[1726069267467,1.3805,131.61,131.49,32.13]
[1726069267674,34.7874,131.6,131.49,32.13]
[1726069267874,3.8012,131.55,131.51,3.802]
[1726069268276,3.76615604,131.56,131.47,32.13]
[1726069268475,32.13,131.58,131.45,33.4687]
[1726069268785,3.78592988,131.57,131.47,32.13]
[1726069269082,32.13,131.58,131.47,32.13]
[1726069269083,34.7874,131.6,131.49,32.13]
[1726069269374,3.74923402,131.59,131.56,3.8005]
[1726069269682,3.74923402,131.59,131.49,32.13]
[1726069270066,2.6574,131.6,131.56,3.8007]
[1726069270472,2.6574,131.6,131.52,32.13]
[1726069270679,5.1798,131.61,131.54,32.13]
[1726069271270,5.1798,131.61,131.57,3.8002]
[1726069271575,3.7995,131.6,131.57,3.8002]
[1726069271874,1.3805,131.61,131.54,32.13]
[1726069272077,1.3805,131.61,131.56,3.8005]
[1726069272271,34.8754,131.65,131.54,32.13]
[1726069272472,36.2694,131.65,131.59,3.7997]
[1726069272668,4.1394,131.65,131.59,3.7997]
[1726069272979,3.799,131.63,131.59,3.7997]
[1726069273372,3.799,131.63,131.54,32.13]
[1726069273373,3.7985,131.64,131.6,3.7995]
[1726069273679,4.1394,131.65,131.6,3.7995]
[1726069273867,4.1394,131.65,131.56,32.13]
[1726069274178,36.2694,131.65,131.54,32.13]
[1726069274478,36.2694,131.65,131.55,3.8009]
[1726069274479,32.13,131.63,131.55,3.8009]
[1726069274872,3.8001,131.58,131.55,3.8009]
[1726069275077,3.82489583,131.57,131.49,32.13]
[1726069275270,32.13,131.6,131.49,32.13]
[1726069275578,3.81558935,131.59,131.49,32.13]
[1726069275972,3.8003,131.58,131.49,32.13]
[1726069276168,3.81558935,131.59,131.49,32.13]
[1726069276376,32.13,131.63,131.51,32.13]
[1726069276571,3.7992,131.62,131.54,32.13]
[1726069276772,3.7992,131.62,131.58,3.7998]
[1726069276972,3.799,131.62,131.54,32.13]
[1726069277276,36.2694,131.65,131.54,32.13]
[1726069277579,3.7997,131.6,131.54,32.13]
[1726069277775,36.2694,131.65,131.54,32.13]
[1726069278181,3.8,131.59,131.52,32.13]
[1726069278373,3.83878326,131.59,131.52,32.13]
[1726069278570,32.13,131.63,131.56,3.8006]
[1726069278774,3.7999,131.59,131.56,3.8006]
[1726069279476,32.13,131.63,131.55,3.8009]
[1726069279669,32.13,131.6,131.49,32.13]
[1726069280084,3.8009,131.56,131.49,32.13]
[1726069280279,3.86291666,131.58,131.49,32.13]
[1726069280583,7.66321666,131.58,131.54,3.801]
[1726069280982,3.86291666,131.58,131.54,3.801]
[1726069281186,3.8005,131.57,131.54,3.801]
[1726069281382,3.86291666,131.58,131.49,32.13]
[1726069281575,4.0759,131.59,131.49,32.13]
[1726069281876,3.8007,131.56,131.49,32.13]
[1726069282584,3.8007,131.56,131.53,3.8014]
[1726069283673,3.8005,131.57,131.54,3.8012]
[1726069283879,7.91392634,131.59,131.49,32.13]
[1726069284179,7.91392634,131.59,131.54,3.8011]
[1726069284180,3.8006,131.57,131.54,3.8011]
[1726069284384,7.91392634,131.59,131.49,32.13]
[1726069284777,32.13,131.58,131.48,2.6623]
[1726069284984,32.13,131.58,131.44,12.81920436]
[1726069284985,32.13,131.56,131.45,32.13]
[1726069285183,32.13,131.56,131.46,6.72617287]
[1726069285876,3.8017,131.53,131.5,3.8024]
[1726069286880,3.8019,131.52,131.49,3.8026]
[1726069287281,3.8019,131.52,131.45,34.7586]
[1726069287487,3.8017,131.53,131.5,3.8024]
[1726069289781,3.8017,131.53,131.49,3.8026]
[1726069289976,32.13,131.56,131.45,34.7586]
[1726069290185,7.91392634,131.59,131.45,34.7586]
[1726069290186,40.04392634,131.59,131.47,32.13]
[1726069290385,7.91392634,131.59,131.49,32.13]
[1726069290776,7.91392634,131.59,131.53,3.8013]
[1726069291183,7.91392634,131.59,131.49,32.13]
[1726069291391,3.8005,131.57,131.54,3.8013]
[1726069292388,3.8003,131.58,131.55,3.8009]
[1726069292791,7.91392634,131.59,131.5,6.72669752]
[1726069292983,32.13,131.54,131.44,3.71726666]
[1726069293291,3.8026,131.5,131.46,3.8035]
[1726069293478,3.73792033,131.51,131.42,6.73520954]
[1726069293680,4.0097,131.53,131.42,6.73520954]
[1726069293880,4.0097,131.53,131.41,2.663]
[1726069294078,4.0097,131.53,131.42,6.74673363]
[1726069294283,32.13,131.52,131.42,6.74673363]
[1726069294484,35.96033204,131.52,131.42,6.74673363]
[1726069294685,35.96033204,131.52,131.41,13.45784618]
[1726069294686,3.83033204,131.52,131.41,20.20457981]
[1726069294992,4.0097,131.53,131.43,32.13]
[1726069295491,4.0097,131.53,131.44,3.77253708]
[1726069295686,3.802,131.52,131.48,3.8028]
[1726069295888,32.13,131.58,131.47,32.13]
[1726069296082,3.8012,131.55,131.5,3.8023]
[1726069296286,3.81627995,131.56,131.5,3.8023]
[1726069296491,36.2226,131.58,131.47,32.13]
[1726069296681,3.8012,131.55,131.47,32.13]
[1726069296886,3.86877139,131.56,131.47,32.13]
[1726069297194,3.802,131.52,131.45,32.13]
[1726069297392,4.0926,131.58,131.45,32.13]
[1726069297393,7.95186207,131.58,131.45,32.13]
[1726069297589,40.08186207,131.58,131.48,32.13]
[1726069297787,3.8007,131.56,131.53,3.8014]
[1726069297987,40.08186207,131.58,131.48,32.13]
[1726069298295,3.8011,131.55,131.52,3.8017]
[1726069298795,4.0926,131.58,131.5,32.13]
[1726069299093,4.0926,131.58,131.48,32.13]
[1726069299094,32.13,131.65,131.52,32.13]
[1726069299389,36.2097,131.65,131.52,32.13]
[1726069299788,39.98974027,131.65,131.54,32.13]
[1726069299989,36.2097,131.65,131.54,32.13]
[1726069300189,3.7993,131.61,131.57,3.8003]
[1726069302091,39.95398981,131.65,131.59,3.7998]
[1726069302092,3.7987,131.63,131.59,3.7998]
[1726069302285,7.82398981,131.65,131.56,32.13]
[1726069302485,7.82398981,131.65,131.55,2.6302]
[1726069302695,3.7991,131.62,131.58,3.7999]
[1726069302891,3.7991,131.62,131.55,2.6302]
[1726069302892,7.82398981,131.65,131.55,2.6302]
[1726069304189,120.15710626,131.69,131.55,2.6302]
[1726069304389,261.12962208,131.81,131.61,32.13]
[1726069304390,4.1243,131.71,131.61,32.13]
[1726069305201,3.7975,131.67,131.63,3.7985]
[1726069305495,3.81857054,131.7,131.61,32.13]
[1726069306698,3.81857054,131.7,131.58,32.13]